bitfinex/quotes_ETHUSD_20260120
["timestamp","ask_amount","ask_price","bid_price","bid_amount"]
[1768930345058,12.59321343,3002.0,3000.7,12.06472001]
[1768930345259,14.57362664,3002.0,3000.6,12.61172001]
[1768930345679,12.59321343,3001.8,3000.6,12.06472001]
[1768930345882,12.59321343,3001.6,3000.6,12.06472001]
[1768930346482,0.548,3001.6,3000.6,12.06472001]
[1768930347143,0.548,3001.6,3000.5,3.33277136]
[1768930347144,0.548,3001.6,3000.8,12.06472001]
[1768930347742,12.59321343,3001.8,3000.5,12.06472001]
[1768930347940,13.14121343,3001.7,3000.5,12.06472001]
[1768930348577,13.14121343,3001.7,3000.6,12.06472001]
[1768930348751,13.14121343,3001.7,3000.7,12.06472001]
[1768930349373,15.12162664,3002.0,3000.8,12.61172001]
[1768930349547,1.84537342,3001.9,3001.0,12.06472001]
[1768930349947,0.001,3001.3,3001.0,12.06472001]
[1768930350176,0.001,3002.1,3001.0,12.06472001]
[1768930350377,0.549,3002.1,3001.0,12.06472001]
[1768930350866,13.14221343,3002.1,3001.0,12.06472001]
[1768930351178,13.41657925,3002.0,3001.0,12.61172001]
[1768930351750,13.41657925,3002.0,3001.0,15.94394218]
[1768930351952,13.41657925,3002.0,3001.1,12.06472001]
[1768930352259,0.548,3001.9,3001.1,12.06472001]
[1768930352459,13.14121343,3001.9,3000.7,3.33249391]
[1768930352666,12.59321343,3001.8,3000.8,12.06472001]
[1768930353966,12.59321343,3001.8,3000.8,15.39713688]
[1768930354201,14.62144713,3001.8,3000.8,15.39713688]
[1768930354352,12.59321343,3001.8,3000.9,12.06472001]
[1768930354880,12.59321343,3001.8,3000.3,12.06672001]
[1768930355087,7.21051742,3001.9,3000.3,12.06672001]
[1768930355088,12.59321343,3001.6,3000.3,12.06672001]
[1768930355256,12.59321343,3001.6,3000.3,15.39971372]
[1768930355257,12.59321343,3001.5,3000.3,15.39971372]
[1768930355576,13.14121343,3001.4,3000.4,12.06472001]
[1768930356562,13.14121343,3001.4,3000.3,0.002]
[1768930356758,12.59321343,3001.2,3000.3,12.06672001]
[1768930357451,12.59321343,3001.0,3000.3,0.002]
[1768930357649,12.59321343,3000.8,3000.3,0.002]
[1768930357850,12.59321343,3000.8,3000.0,0.002]
[1768930360783,12.59321343,3000.7,3000.0,0.002]
[1768930361766,12.59321343,3000.5,3000.0,0.002]
[1768930361962,15.06706813,3000.4,2999.5,12.06272821]
[1768930362961,15.06706813,3000.4,2999.2,0.547]
[1768930362962,15.06706813,3000.4,2999.3,12.06472001]
[1768930363296,15.06706813,3000.4,2999.4,12.06472001]
[1768930363505,15.06706813,3000.4,2999.5,12.06472001]
[1768930363669,11.99397294,3000.7,2999.6,11.77666126]
[1768930363877,11.99397294,3001.3,2999.8,11.77666126]
[1768930364086,0.548,3001.3,2999.8,11.77666126]
[1768930364484,11.99497294,3001.5,3000.0,11.77666126]
[1768930364811,0.549,3001.5,3000.0,11.77666126]
[1768930365472,0.549,3001.5,3000.2,12.06511169]
[1768930366071,0.549,3001.5,3000.4,12.06511169]
[1768930366593,0.001,3001.5,3000.6,12.06511169]
[1768930366794,0.548,3002.0,3000.5,0.547]
[1768930367107,0.548,3002.0,3000.6,12.06511169]
[1768930367317,12.09506701,3002.1,3000.6,12.06511169]
[1768930367618,0.001,3002.1,3000.7,12.06511169]
[1768930368274,0.001,3002.1,3000.9,12.06511169]
[1768930368477,0.001,3002.1,3001.1,12.06511169]
[1768930370375,0.001,3002.1,3001.2,3.33200053]
[1768930370580,0.001,3002.1,3001.3,12.06511169]
[1768930372205,0.001,3002.1,3001.5,12.06511169]
[1768930372900,0.001,3002.1,3001.6,12.06511169]
[1768930373427,0.001,3002.7,3001.6,12.06511169]
[1768930373606,11.92823917,3003.0,3001.6,12.06511169]
[1768930373787,12.09506701,3003.3,3001.6,12.05883168]
[1768930373993,12.64306701,3003.3,3001.6,12.05883168]
[1768930374183,12.09406701,3003.2,3001.8,12.06511169]
[1768930374402,12.09406701,3003.2,3002.0,12.06511169]
[1768930374822,12.09406701,3003.2,3002.2,12.06511169]
[1768930375691,0.001,3003.3,3002.4,12.06511169]
[1768930376109,12.09506701,3003.3,3002.4,12.06511169]
[1768930376321,13.69233123,3003.3,3002.4,12.06511169]
[1768930377241,13.69233123,3003.3,3002.4,15.39576024]
[1768930377420,13.69233123,3003.3,3002.4,12.06511169]
[1768930377737,0.001,3003.3,3002.5,12.06511169]
[1768930378936,12.09506701,3003.3,3002.5,12.06511169]
[1768930379141,12.09506701,3003.3,3002.3,0.547]
[1768930379437,12.09406701,3003.2,3002.3,12.61211169]
[1768930379645,13.63654249,3003.1,3002.3,12.06511169]
[1768930379841,13.63654249,3003.1,3002.2,0.547]
[1768930380209,13.63654249,3003.1,3002.2,12.06511169]
[1768930380631,1.54247548,3003.1,3002.2,12.06511169]
[1768930380852,12.09406701,3002.9,3001.5,12.06511169]
[1768930381045,12.09406701,3002.7,3001.5,12.61211169]
[1768930381244,12.09406701,3002.7,3000.9,3.33223969]
[1768930381245,12.09406701,3002.7,3001.3,12.06511169]
[1768930381638,12.09406701,3002.4,3001.2,0.547]
[1768930381840,7.02175125,3002.5,3001.2,0.547]
[1768930381841,12.09406701,3002.2,3001.2,0.547]
[1768930382028,13.35827371,3002.2,3001.2,0.547]
[1768930382350,13.35827371,3002.2,3001.0,12.06511169]
[1768930382656,13.35827371,3002.2,3000.6,0.17383741]
[1768930382657,12.09406701,3002.1,3000.6,0.72083741]
[1768930383023,12.09406701,3001.7,3000.6,0.72083741]
[1768930383218,12.64206701,3001.6,3000.6,0.72083741]
[1768930383426,12.64206701,3001.6,3000.6,0.17383741]
[1768930383837,12.64206701,3001.6,3000.1,12.61211169]
[1768930384023,12.64206701,3001.6,3000.1,16.11913338]
[1768930384218,1.2642067,3002.2,3000.6,12.06511169]
[1768930384551,12.09406701,3001.9,3000.6,12.06511169]
[1768930384725,12.09406701,3001.9,3000.7,12.06511169]
[1768930384920,13.35827371,3002.2,3000.7,12.06511169]
[1768930385121,12.09406701,3003.1,3000.9,12.06511169]
[1768930385328,12.09406701,3003.0,3001.1,12.06511169]
[1768930385559,12.64206701,3002.9,3001.3,12.06511169]
[1768930385852,12.09406701,3002.9,3001.3,12.06511169]
[1768930386165,0.548,3002.8,3001.3,12.06511169]
[1768930386825,0.38217112,3002.8,3001.3,12.06511169]
[1768930387221,0.001,3003.3,3001.5,12.06511169]
[1768930387466,0.548,3003.2,3001.7,12.06511169]
[1768930387969,0.548,3003.1,3001.7,12.06511169]
[1768930388344,0.001,3003.3,3001.8,12.06511169]
[1768930389065,12.09506701,3003.3,3001.8,12.06511169]
[1768930389267,12.09406701,3003.1,3001.5,12.06511169]
[1768930389444,13.1420946,3003.2,3001.5,12.61211169]
[1768930389445,12.09406701,3002.9,3001.5,12.61211169]
[1768930389762,13.35827371,3002.9,3001.6,3.33149559]
[1768930389935,13.35827371,3002.9,3001.8,12.06511169]
[1768930390136,13.35827371,3002.9,3001.9,12.06511169]
[1768930390367,13.35827371,3002.9,3001.6,12.06511169]
[1768930390572,12.09406701,3002.8,3001.3,3.33181881]
[1768930390740,14.18893026,3002.8,3001.4,3.33177715]
[1768930390938,14.18893026,3002.8,3001.5,3.33163609]
[1768930391137,14.18893026,3002.8,3001.2,12.61211169]
[1768930391138,14.18893026,3002.8,3001.4,3.33173383]
[1768930391454,12.09406701,3002.7,3001.3,15.39697026]
[1768930391837,12.09406701,3002.7,3001.3,18.72885977]
[1768930392660,12.09406701,3002.7,3001.3,15.39697026]
[1768930392969,12.09406701,3002.7,3001.3,18.72885977]
[1768930393370,12.09406701,3002.7,3001.4,12.06511169]
[1768930394966,12.09406701,3002.7,3001.5,3.33166749]
[1768930395270,12.09406701,3002.7,3001.5,15.03652461]
[1768930395658,0.548,3002.6,3001.6,11.70485712]
[1768930395857,3.32998295,3003.1,3001.6,11.70485712]
[1768930396067,12.3264968,3003.0,3001.6,11.70485712]
[1768930396449,12.3264968,3003.0,3001.4,3.33174887]
[1768930396450,12.3264968,3003.0,3001.4,3.33170502]
[1768930396778,12.3264968,3003.0,3001.3,11.70485712]
[1768930396779,11.7784968,3002.8,3001.3,11.70485712]
[1768930396980,6.66155946,3002.3,3000.9,0.002]
[1768930397165,11.7784968,3002.0,3000.9,0.002]
[1768930397370,11.7784968,3002.0,3000.5,0.002]
[1768930397576,6.48251601,3002.1,3000.5,0.002]
[1768930397577,11.7784968,3001.6,3000.5,0.002]
[1768930397784,6.48251601,3001.3,2999.8,11.70485712]
[1768930398080,6.48251601,3001.3,2999.5,0.17357044]
[1768930398081,11.7784968,3001.2,2999.7,12.25185712]
[1768930398574,11.7784968,3001.2,2999.8,3.33349478]
[1768930398760,11.7784968,3001.2,2999.7,0.547]
[1768930399079,11.7784968,3001.0,2999.7,0.547]
[1768930399259,11.7784968,3000.8,2999.7,0.547]
[1768930399994,11.7784968,3000.8,3000.5,0.002]
[1768930400197,11.7784968,3000.8,2999.5,0.17361138]
[1768930400365,11.7784968,3000.8,2999.4,11.70485712]
[1768930401088,11.7784968,3000.6,2999.4,15.03884425]
[1768930401452,11.7784968,3001.4,2999.5,11.70485712]
[1768930401652,12.3264968,3001.3,2999.5,11.70485712]
[1768930402251,11.7784968,3001.2,2999.5,11.70485712]
[1768930402452,11.7784968,3001.2,2999.5,0.17387222]
[1768930402687,11.7784968,3001.2,2999.4,3.33398713]
[1768930402879,11.7784968,3001.0,2999.4,15.03884425]
[1768930403280,11.7784968,3000.8,2999.4,15.03884425]
[1768930403586,11.7784968,3000.6,2999.4,11.70485712]
[1768930403786,11.7784968,3000.6,2999.3,0.002]
[1768930403956,11.7784968,3000.6,2999.3,3.33608732]
[1768930404304,13.01114648,3000.5,2999.3,0.002]
[1768930405152,15.11138574,3000.4,2999.3,0.002]
[1768930405353,11.7784968,3000.3,2999.3,0.002]
[1768930405579,0.548,3000.2,2999.3,0.002]
[1768930406867,12.3264968,3000.2,2999.3,0.002]
[1768930407061,1.23264968,3000.1,2999.3,0.002]
[1768930408755,0.548,3000.3,2999.3,11.70685712]
[1768930408975,0.548,3000.4,2999.3,11.70685712]
[1768930409200,12.3264968,3000.4,2999.3,11.70685712]
[1768930409484,11.7784968,3000.2,2999.3,0.72284374]
[1768930409686,13.28964648,3000.1,2999.3,0.002]
[1768930410185,0.548,3000.0,2999.3,0.002]
[1768930412215,0.548,3000.0,2999.5,0.002]
[1768930413185,12.3264968,3000.0,2999.5,0.002]
[1768930414420,15.65986267,3000.0,2999.5,0.002]
[1768930414620,11.7784968,2999.9,2999.5,0.002]
[1768930415320,12.3264968,2999.9,2999.5,0.002]
[1768930415482,0.548,2999.9,2999.5,0.002]
[1768930416629,12.3264968,2999.9,2999.5,0.002]
[1768930417049,11.7784968,2999.8,2998.8,0.002]
[1768930417207,11.7784968,2999.6,2998.8,0.002]
[1768930417409,14.32609363,2999.7,2998.8,11.70685712]
[1768930417598,3.81,3000.4,2998.8,11.70685712]
[1768930417599,0.548,2999.6,2998.8,11.70685712]
[1768930418222,12.3264968,2999.6,2998.8,0.002]
[1768930418711,12.3264968,2999.6,2996.8,11.70485712]
[1768930418712,11.7784968,2998.8,2996.8,11.70485712]
[1768930418930,11.7784968,2998.1,2996.1,0.547]
[1768930419206,12.3264968,2998.0,2996.4,11.70485712]
[1768930419420,12.3264968,2998.0,2996.6,11.70485712]
[1768930419606,12.3264968,2998.0,2996.3,11.70485712]
[1768930419808,12.3264968,2998.0,2995.8,0.17397595]
[1768930419809,11.7784968,2997.3,2995.8,0.17397595]
[1768930420139,11.7784968,2997.0,2995.0,0.5]
[1768930420287,1.84517069,2996.9,2995.6,3.33821681]
[1768930420490,0.548,2997.1,2995.7,11.70485712]
[1768930420690,0.548,2997.4,2995.7,11.70485712]
[1768930421321,11.7784968,2997.9,2995.9,11.70485712]
[1768930421513,11.7784968,2997.7,2996.1,11.70485712]
[1768930421708,11.7784968,2997.6,2996.1,11.70485712]
[1768930422110,3.33611342,2997.5,2996.1,11.70485712]
[1768930422313,3.33611342,2997.5,2995.8,0.547]
[1768930422314,11.7784968,2997.4,2995.8,15.5897807]
[1768930422516,3.33611342,2997.5,2995.9,3.33788351]
[1768930422517,13.83795782,2997.3,2995.9,3.33788351]
[1768930422718,13.83795782,2997.3,2995.9,3.33789193]
[1768930423263,11.7784968,2997.3,2995.9,11.70485712]
[1768930423528,11.7784968,2997.3,2995.8,0.547]
[1768930423529,0.548,2997.4,2996.2,11.70485712]
[1768930424099,0.548,2997.4,2996.4,12.55011021]
[1768930424357,1.38016927,2998.0,2996.4,12.55011021]
[1768930424507,0.548,2998.0,2996.6,12.55011021]
[1768930425203,12.75461154,2998.0,2996.6,12.55011021]
[1768930425401,12.20661154,2998.0,2996.4,12.7590501]
[1768930425631,0.548,2997.9,2996.4,12.7590501]
[1768930425832,6.48251601,2998.3,2996.4,12.7590501]
[1768930426001,12.20661154,2998.4,2998.0,3.343]
[1768930426002,2.41691276,2998.2,2998.0,3.343]
[1768930426202,2.41691276,2998.2,2996.7,3.33697729]
[1768930426433,2.41691276,2998.2,2997.0,3.33657175]
[1768930426434,1.86891276,2998.2,2997.0,3.33657175]
[1768930426626,1.86891276,2998.2,2996.8,16.0958946]
[1768930426822,0.04459013,2998.0,2996.9,3.33675743]
[1768930427041,0.04459013,2998.0,2996.8,12.7590501]
[1768930427533,0.548,2997.9,2996.9,3.33672681]
[1768930427738,0.548,2997.8,2996.9,6.67350815]
[1768930427899,0.04459013,2998.0,2996.9,3.33672681]
[1768930428104,0.548,2997.9,2996.9,16.09577691]
[1768930428503,0.548,2997.9,2997.0,12.7590501]
[1768930428733,0.59259013,2998.0,2997.0,12.7590501]
[1768930429132,0.04459013,2998.0,2997.0,12.7590501]
[1768930429305,0.59259013,2998.0,2997.0,12.7590501]
[1768930430135,0.59259013,2998.0,2997.0,16.09571326]
[1768930430342,0.59259013,2998.0,2997.0,12.7590501]
[1768930430541,12.20661154,2997.9,2996.6,3.33706661]
[1768930431241,0.59259013,2998.0,2996.6,3.33702425]
[1768930431242,12.20661154,2997.7,2996.6,3.33702425]
[1768930431536,13.42727269,2997.7,2996.6,3.33702425]
[1768930431746,13.42727269,2997.7,2996.7,3.33699741]
[1768930432244,13.42727269,2997.7,2996.6,3.33711539]
[1768930432644,6.48251601,2997.4,2996.0,0.002]
[1768930432859,13.42727269,2997.7,2994.6,0.1756629]
[1768930432860,12.20661154,2996.6,2995.4,12.7590501]
[1768930433142,12.20661154,2996.6,2995.3,12.7590501]
[1768930433367,0.548,2996.5,2995.4,3.33844731]
[1768930433554,0.548,2996.5,2995.3,12.7590501]
[1768930433715,12.20661154,2997.4,2996.5,3.33715549]
[1768930433912,0.548,2997.3,2996.3,3.33740467]
[1768930434114,12.75461154,2997.3,2996.1,6.6753446]
[1768930434342,12.75461154,2997.3,2996.1,3.3376723]
[1768930434851,12.20661154,2997.1,2996.1,3.3376723]
[1768930435352,12.20661154,2997.1,2996.1,6.6753446]
[1768930435538,12.20661154,2997.1,2996.1,3.3376723]
[1768930435716,2.00318548,2997.4,2996.1,6.6753446]
[1768930435917,12.20661154,2997.9,2996.2,12.7590501]
[1768930436125,12.75461154,2997.8,2996.3,19.43394914]
[1768930436327,12.75461154,2997.8,2996.3,6.67489904]
[1768930436557,12.20661154,2997.5,2996.3,3.33744952]
[1768930436731,12.20661154,2997.5,2996.3,6.67489904]
[1768930437463,12.20661154,2997.5,2996.3,3.33744952]
[1768930437858,0.549,2997.4,2996.3,3.33744952]
[1768930438038,12.75561154,2997.4,2996.2,3.33751851]
[1768930438362,12.75561154,2997.4,2996.0,3.33768732]
[1768930438566,12.75561154,2997.4,2996.0,19.43452113]
[1768930438567,12.20661154,2997.4,2996.0,19.43452113]
[1768930438729,1.22066115,2997.3,2996.1,12.7590501]
[1768930438929,12.20761154,2997.8,2996.1,12.7590501]
[1768930439129,0.549,2997.7,2996.1,12.7590501]
[1768930439429,12.75561154,2997.7,2996.1,12.7590501]
[1768930440266,12.75561154,2997.7,2996.2,3.33756091]
[1768930440472,12.75561154,2997.7,2996.2,6.67512182]
[1768930440764,12.75561154,2997.7,2995.9,0.548]
[1768930440765,12.20661154,2997.5,2995.9,0.548]
[1768930440971,12.20661154,2997.2,2996.0,3.33772457]
[1768930441212,12.75561154,2997.1,2996.1,3.33764896]
[1768930441544,12.20661154,2997.7,2996.2,12.7590501]
[1768930441764,0.549,2997.6,2996.4,12.7590501]
[1768930441963,0.001,2997.8,2996.5,12.7590501]
[1768930442165,12.20661154,2997.7,2996.4,12.7590501]
[1768930442472,12.20661154,2997.7,2996.1,10.56099356]
[1768930442473,0.549,2997.6,2996.5,19.43350362]
[1768930442780,0.001,2997.8,2996.6,12.7590501]
[1768930442988,0.549,2997.7,2996.6,12.7590501]
[1768930443275,0.001,2997.8,2996.6,12.7590501]
[1768930443480,0.549,2997.7,2996.6,12.7590501]
[1768930444283,0.001,2997.8,2996.6,12.7590501]
[1768930444467,0.55,2997.8,2996.8,12.7590501]
[1768930445078,0.001,2997.8,2996.8,12.7590501]
[1768930445281,0.001,2997.8,2997.0,12.7590501]
[1768930445777,0.549,2998.3,2997.0,12.7590501]
[1768930446149,0.548,2998.3,2997.0,12.7590501]
[1768930446367,12.20661154,2998.6,2997.2,6.6728947]
[1768930446552,0.548,2998.5,2997.3,13.3070501]
[1768930447252,0.548,2998.6,2997.3,13.3070501]
[1768930447773,12.20661154,2998.8,2997.3,13.3070501]
[1768930447969,3.33473345,2999.7,2997.3,13.3070501]
[1768930447970,12.20661154,2999.6,2997.3,13.3070501]
[1768930448269,13.97537269,2999.5,2997.5,12.7590501]
[1768930448472,12.20661154,2999.3,2997.7,12.7590501]
[1768930448687,12.20661154,2999.3,2997.9,12.7590501]
[1768930449673,12.20661154,2998.9,2997.2,27.2590501]
[1768930449873,7.038079,2999.0,2997.3,0.548]
[1768930449874,12.20661154,2998.7,2997.3,0.548]
[1768930450089,1.27546115,2998.6,2997.5,3.33608304]
[1768930450795,0.548,2998.6,2997.5,12.7590501]
[1768930451590,12.75461154,2998.6,2997.3,3.884292]
[1768930451781,13.70791822,2999.1,2997.4,12.7590501]
[1768930451782,12.20661154,2999.0,2997.4,12.7590501]
[1768930451975,0.548,2998.9,2997.4,12.7590501]
[1768930452204,1.27546115,2998.8,2997.4,12.7590501]
[1768930452773,12.20661154,2998.8,2997.5,16.09516352]
[1768930453169,12.20661154,2998.8,2997.5,12.7590501]
[1768930454070,12.20661154,2998.8,2997.3,0.548]
[1768930454299,12.20661154,2998.8,2997.2,12.7590501]
[1768930454300,12.20661154,2998.6,2997.1,3.33645689]
[1768930454594,12.20661154,2998.6,2997.0,0.002]
[1768930454808,12.20661154,2998.9,2997.2,12.7590501]
[1768930455008,0.548,2998.7,2997.4,12.08709623]
[1768930455309,14.14072427,2998.7,2997.5,12.08709623]
[1768930456630,14.14072427,2998.7,2997.3,0.548]
[1768930456825,12.31726312,2998.6,2997.3,0.548]
[1768930457796,12.31726312,2998.6,2997.3,12.63509623]
[1768930458696,12.31726312,2998.6,2997.3,0.548]
[1768930458895,12.31726312,2998.4,2997.3,0.548]
[1768930459091,12.31726312,2998.4,2997.3,3.88432747]
[1768930459297,12.31726312,2998.4,2997.3,15.9714237]
[1768930459539,0.548,2998.3,2997.3,15.9714237]
[1768930460202,0.548,2998.3,2997.3,15.97142005]
[1768930460401,1.97593355,2998.3,2997.3,15.97142005]
[1768930460614,1.97593355,2998.3,2997.3,12.63509623]
[1768930460910,14.29319667,2998.3,2997.3,15.97142892]
[1768930461120,14.29319667,2998.3,2997.3,12.63509623]
[1768930461325,14.29319667,2998.3,2997.0,0.002]
[1768930461532,12.31726312,2998.1,2997.0,0.002]
[1768930462340,1.42931967,2998.2,2996.8,0.002]
[1768930462341,12.31726312,2997.8,2996.8,0.002]
[1768930462512,7.038079,2997.9,2996.8,0.002]
[1768930462513,12.31726312,2997.6,2996.8,0.002]
[1768930463114,0.548,2997.5,2997.0,0.002]
[1768930463351,13.74658279,2998.2,2997.0,12.08909623]
[1768930463520,1.37565828,2998.1,2997.0,12.08909623]
[1768930463717,0.001,2998.1,2997.0,12.08909623]
[1768930464815,0.001,2998.1,2997.2,12.08709623]
[1768930465151,0.001,2998.1,2997.4,12.08709623]
[1768930465554,12.15143425,2999.1,2997.6,12.08709623]
[1768930465727,0.548,2998.7,2997.7,12.08709623]
[1768930466725,0.548,2998.7,2997.4,12.08709623]
[1768930467024,0.548,2998.7,2997.5,15.97120965]
[1768930467329,0.548,2998.7,2997.6,12.08709623]
[1768930467947,12.86526312,2998.7,2997.3,12.08709623]
[1768930468145,12.86526312,2998.7,2997.4,15.048]
[1768930468657,12.86526312,2998.7,2997.4,0.548]
[1768930475095,12.31726312,2998.4,2997.4,0.548]
[1768930475232,13.54908943,2998.4,2997.4,0.548]
[1768930475986,13.54908943,2998.4,2997.2,15.4234384]
[1768930475987,13.54908943,2998.4,2997.2,12.08709623]
[1768930476269,12.31726312,2998.2,2997.2,12.08709623]
[1768930476927,12.31726312,2998.2,2997.0,0.002]
[1768930477561,12.86526312,2998.1,2997.1,12.08709623]
[1768930478363,0.548,2998.1,2997.1,12.08709623]
[1768930478664,0.548,2998.1,2997.1,12.63509623]
[1768930479460,12.31726312,2998.4,2997.1,12.63509623]
[1768930479760,0.549,2998.5,2997.3,12.08709623]
[1768930481540,7.038079,2999.4,2997.2,6.6728947]
[1768930481541,12.31726312,2999.3,2997.6,12.08709623]
[1768930481844,12.86526312,2999.3,2997.8,12.08709623]
[1768930483246,0.548,2999.3,2997.8,12.08709623]
[1768930483565,0.548,2999.5,2998.2,12.20337943]
[1768930483765,13.05399142,2999.5,2998.3,0.548]
[1768930484382,13.05399142,2999.5,2997.9,12.20337943]
[1768930484554,12.50599142,2999.4,2997.9,12.20337943]
[1768930485067,12.50599142,2999.4,2998.0,12.75565067]
[1768930485264,12.97457337,2999.3,2998.1,12.75565067]
[1768930485447,1.84545734,2999.2,2998.1,12.75565067]
[1768930485646,14.27203071,2999.2,2998.1,12.75565067]
[1768930485873,14.27203071,2999.2,2998.2,12.75565067]
[1768930486312,13.72403071,2999.2,2998.2,12.75565067]
[1768930486516,0.548,2999.1,2998.2,12.75565067]
[1768930486712,0.548,2999.2,2998.2,12.75565067]
[1768930487223,0.001,2999.1,2998.2,12.75565067]
[1768930488307,0.001,2999.1,2998.3,12.75565067]
[1768930488506,0.001,2999.1,2998.3,13.30365067]
[1768930489205,0.001,2999.1,2998.3,0.548]
[1768930489206,12.42757337,2999.1,2998.3,0.548]
[1768930489411,12.42757337,2999.1,2997.9,0.548]
[1768930489812,12.42757337,2999.1,2997.9,3.88358649]
[1768930490222,12.42757337,2999.1,2997.9,16.63923716]
[1768930490437,12.42757337,2999.1,2997.9,19.97490546]
[1768930490638,0.001,2999.1,2998.0,12.75565067]
[1768930491109,0.001,2999.1,2998.0,12.74834553]
[1768930491822,0.001,2999.1,2998.2,12.75565067]
[1768930494214,0.001,2999.1,2998.3,12.75565067]
[1768930494409,0.001,2999.1,2998.4,12.75565067]
[1768930494604,0.001,2999.1,2998.2,3.33526371]
[1768930494810,0.001,2999.1,2998.3,13.30265067]
[1768930496649,0.001,2999.1,2995.7,0.002]
[1768930496650,12.42657337,2997.0,2995.7,0.002]
[1768930496850,0.80500374,2997.8,2995.0,0.5]
[1768930496851,3.63251484,2995.5,2995.0,0.5]
[1768930497012,0.71389815,2995.4,2995.0,0.5]
[1768930497213,3.632515,2995.3,2995.0,0.5]
[1768930497445,1.78493641,2996.6,2995.4,0.71389815]
[1768930497640,1.481654,2996.1,2995.3,12.75565067]
[1768930497827,12.20283368,2996.5,2995.3,12.75565067]
[1768930498025,12.20283368,2996.5,2995.0,4.38584995]
[1768930498026,1.149654,2995.7,2995.0,17.14150062]
[1768930498356,0.48567564,2995.7,2995.0,17.14150062]
[1768930498561,0.48567564,2995.7,2995.0,17.1415438]
[1768930498765,0.48567564,2995.7,2995.0,1.047]
[1768930499567,0.48567564,2995.7,2995.6,0.002]
[1768930500256,0.485676,2995.3,2995.0,0.5]
[1768930500422,0.40121023,2995.3,2995.0,0.5]
[1768930500622,3.33712829,2996.6,2995.0,0.5]
[1768930500623,1.11877864,2995.2,2995.0,0.5]
[1768930500959,7.038079,2996.7,2995.0,16.59453545]
[1768930500960,0.401211,2995.6,2995.0,16.59453545]
[1768930501255,0.401211,2995.6,2995.0,13.25565067]
[1768930502361,0.401211,2995.6,2995.0,0.5]
[1768930502726,12.42657337,2995.6,2995.0,0.5]
[1768930503159,0.401211,2995.2,2995.0,0.5]
[1768930504725,0.401211,2995.3,2995.0,0.5]
[1768930504942,0.401211,2995.3,2994.6,0.002]
[1768930504943,12.82778437,2995.3,2994.6,0.002]
[1768930505146,0.401211,2995.2,2994.6,0.002]
[1768930505782,0.401211,2995.2,2994.0,3.34000375]
[1768930505783,0.401211,2991.1,2990.7,0.401211]
[1768930505989,0.002,2994.5,2990.8,12.75565067]
[1768930505990,0.549,2992.1,2990.8,12.75565067]
[1768930506196,6.50909804,2992.9,2991.0,12.75565067]
[1768930506394,0.549,2992.9,2991.0,12.75565067]
[1768930506681,0.549,2992.9,2990.8,0.548]
[1768930506682,12.42657337,2993.1,2991.2,12.75565067]
[1768930506996,12.42657337,2993.2,2991.1,12.75565067]
[1768930507146,12.42657337,2993.7,2991.4,12.75565067]
[1768930507476,12.42657337,2993.4,2991.4,12.75565067]
[1768930508248,18.93567141,2993.9,2991.6,12.75565067]
[1768930508480,12.42657337,2994.9,2992.3,12.75565067]
[1768930508666,0.44111596,2995.3,2993.0,12.75565067]
[1768930508977,0.44111596,2995.3,2992.9,10.02372279]
[1768930508978,12.86768933,2995.3,2993.2,12.75565067]
[1768930509154,12.42657337,2996.4,2993.9,12.75565067]
[1768930509356,12.42657337,2996.4,2993.8,6.50909804]
[1768930509357,12.42657337,2996.4,2994.2,12.75565067]
[1768930509554,6.50909804,2996.3,2994.2,12.75565067]
[1768930509757,6.50909804,2996.3,2994.0,0.548]
[1768930509758,18.93567141,2995.9,2994.0,0.548]
[1768930510068,1.89356714,2995.8,2994.0,0.548]
[1768930510576,0.549,2995.7,2994.0,0.548]
[1768930510888,6.50909804,2995.5,2994.1,3.3399018]
[1768930511180,0.549,2995.7,2994.0,7.22800461]
[1768930511974,0.549,2995.7,2994.0,3.88799125]
[1768930512144,0.57805854,2995.6,2994.0,3.88799125]
[1768930512559,1.12705854,2995.6,2994.0,3.88799125]
[1768930512793,0.001,2995.1,2994.0,7.22800461]
[1768930513085,0.001,2995.1,2994.0,3.88799125]
[1768930513285,0.001,2995.1,2994.0,7.22800461]
[1768930513487,0.001,2995.1,2994.1,12.75565067]
[1768930514784,0.001,2995.1,2994.0,0.548]
[1768930514785,6.51009804,2995.1,2994.0,0.548]
[1768930514984,0.001,2995.1,2994.0,3.88795617]
[1768930515363,0.001,2995.1,2994.0,7.22796953]
[1768930515680,0.001,2995.1,2994.0,20.03974241]
[1768930515987,0.001,2995.1,2994.0,13.35977288]
[1768930516212,0.001,2995.1,2994.0,0.548]
[1768930516558,0.001,2995.1,2994.0,3.88799899]
[1768930517090,0.001,2995.1,2994.0,0.548]
[1768930517684,0.001,2995.1,2994.0,3.8880116]
[1768930518462,0.001,2995.1,2992.7,9.85054282]
[1768930518463,6.50909804,2994.7,2993.0,16.15279506]
[1768930518809,0.69956417,2994.6,2993.4,3.3405994]
[1768930518976,19.43882943,2994.7,2993.1,0.548]
[1768930519181,19.43882943,2994.7,2993.2,3.34081772]
[1768930519378,19.43882943,2994.7,2993.1,0.548]
[1768930519379,1.94388294,2994.6,2993.1,0.548]
[1768930519689,19.43882943,2994.3,2993.1,0.548]
[1768930519989,1.94388294,2994.6,2993.1,20.04180822]
[1768930520199,1.94388294,2994.6,2993.2,12.81177288]
[1768930520694,0.549,2994.9,2993.2,12.81177288]
[1768930520987,0.70062055,2994.9,2993.3,3.34079444]
[1768930521197,0.70062055,2994.8,2993.3,3.34079444]
[1768930521491,12.92973139,2994.6,2993.1,0.548]
[1768930521689,13.63035194,2994.5,2993.1,0.548]
[1768930521892,19.43882943,2994.3,2993.1,0.548]
[1768930522094,12.92973139,2994.1,2992.3,0.003]
[1768930522294,0.70062055,2994.0,2992.3,12.81477288]
[1768930522482,19.43882943,2994.3,2992.9,3.3411794]
[1768930522483,1.24962055,2994.2,2992.9,3.3411794]
[1768930522796,0.70062055,2994.2,2992.8,3.88927065]
[1768930522964,0.70062055,2994.1,2992.8,3.88927065]
[1768930523166,0.70062055,2994.0,2992.8,3.88927065]
[1768930523360,0.70062055,2993.9,2992.8,0.548]
[1768930523597,10.37977924,2993.8,2992.3,0.551]
[1768930523894,1.24962055,2993.7,2992.3,0.551]
[1768930524091,6.50909804,2993.9,2992.3,0.551]
[1768930524092,0.70062055,2993.6,2992.3,3.89288988]